Cogmind - Beta 10.2 @@@ ROGUE MODE // 2021.10.20 @ 21:48:28 Player: 3E Result: Destroyed by G-47 Trooper with Particle Gun Performance ------------- Evolutions (2) 1000 Regions Visited (6) 1200 Robots Destroyed (54) 270 Value Destroyed (1408) 1408 Prototype IDs (24) 480 Alien Tech Used (0) 0 Bonus (775) 775 TOTAL SCORE: 5133 Bonus ------- Pacifist 200 High Alert Combat Kills 108 Follower Combat Kills 167 Aligned with FarCom 300 Cogmind --------- Core Integrity 0/550 Matter 260/300 Energy 84/100 System Corruption 1% Temperature Cool (112) Movement Flying (40) Location -8/Materials Parts ------- > --- POWER (2) -------- (None) > --- PROPULSION (4) --- Flight Unit > --- UTILITY (3) ------ Advanced Targeting Computer > --- WEAPON (2) ------- (None) > --- INVENTORY (4) ---- Improved Datajack Peak State ------------ > --- POWER ------------ Deuterium Engine Light Nuclear Core > --- PROPULSION ------- Armored Treads Armored Treads Armored Treads Armored Treads > --- UTILITY ---------- Improved Heat Sink Advanced Sensor Array Advanced Targeting Computer > --- WEAPON ----------- Shock Bomb Launcher Shock Bomb Launcher > --- INVENTORY -------- Flight Unit Shock Bomb Launcher Shock Bomb Launcher Improved Datajack [Rating: 34] Favorites ----------- Power Light Ion Engine Engine Light Ion Engine Power Core Light Nuclear Core Propulsion Aluminum Leg Treads Armored Treads Leg Aluminum Leg Flight Unit Flight Unit Utility Advanced Targeting Computer Device ECM Suite Storage Large Storage Unit Processor Advanced Targeting Computer Protection Core Shielding Weapon Shock Bomb Launcher Energy Gun Small Laser Energy Cannon Light EM Pulse Cannon Ballistic Gun Light Assault Rifle Launcher Shock Bomb Launcher Special Weapon Field Lobotomy Kit Slashing Weapon Katana Special Melee Weapon Improved Datajack Build | -11 -10 -9 -9 -9 -8 -8 ------- Run | Scr Mat Mat Min Exi Min Mat Slots Evolved 4 | . . 2 . . . 2 Power 1 | . . . . . . 1 Propulsion 2 | . . 2 . . . . Utility 1 | . . . . . . 1 Weapon . | . . . . . . . Parts Attached 71 | 6 2 17 12 1 . 33 Power 10 | 1 . 2 2 . . 5 Engine 8 | 1 . 2 2 . . 3 Core 2 | . . . . . . 2 Reactor . | . . . . . . . Propulsion 28 | 2 . 9 6 . . 11 Treads 9 | . . 3 2 . . 4 Leg 13 | 2 . 5 . . . 6 Wheel . | . . . . . . . Hover . | . . . . . . . Flight 6 | . . 1 4 . . 1 Utility 11 | 1 2 2 1 1 . 4 Device 5 | . . . 1 1 . 3 Storage 2 | 1 1 . . . . . Processor 1 | . . . . . . 1 Hackware . | . . . . . . . Protection 3 | . 1 2 . . . . Artifact . | . . . . . . . Weapon 22 | 2 . 4 3 . . 13 Energy Gun 8 | 2 . 2 2 . . 2 Energy Cannon 1 | . . . . . . 1 Ballistic Gun 2 | . . 1 1 . . . Ballistic Cannon . | . . . . . . . Launcher 4 | . . . . . . 4 Special Weapon 5 | . . . . . . 5 Impact Weapon . | . . . . . . . Slashing Weapon 1 | . . 1 . . . . Piercing Weapon . | . . . . . . . Special Melee Weapon 1 | . . . . . . 1 Unidentified Prototypes 2 | . . 1 . 1 . . Parts Lost 36 | . . 7 9 . . 20 Power 8 | . . 1 2 . . 5 Propulsion 14 | . . 3 4 . . 7 Utility 3 | . . 1 . . . 2 Weapon 11 | . . 2 3 . . 6 Highest Loss Streak 13 | . . 7 5 . . 13 Average Slot Usage (%) 84 | . 98 87 79 83 77 85 Engine 11 | . 14 10 10 11 11 12 Treads 12 | . . 11 9 . . 17 Leg 10 | . 28 22 9 . . 5 Flight 9 | . . . 10 44 44 9 Device 7 | . . . 1 11 11 13 Storage 5 | . 14 11 9 . . . Processor 4 | . . . . . . 8 Protection 5 | . 12 8 11 6 . . Energy Gun 5 | . 28 12 5 . . . Ballistic Gun 3 | . . 7 1 11 11 3 Launcher 4 | . . . . . . 9 Slashing Weapon 2 | . . 1 9 . . . Naked Turns . | . . . . . . . Heaviest Build 30 | 11 26 30 26 6 5 28 Greatest Support 80 | 20 20 40 40 8 8 80 Greatest Overweight (x) 4 | . 1 2 4 . . 1 Average Overweight (x) . | . . . . . . . Largest Inventory Capacity 10 | 6 10 10 10 4 4 4 Average Capacity 6 | 5 8 10 9 4 4 4 Most Carried 10 | 3 6 10 10 4 4 4 Average Carried 5 | 1 4 8 8 3 4 3 Final Capacity 10 | 6 10 10 4 4 4 4 Final Carried 10 | 2 6 10 4 4 4 1 Class Distribution -------------------- 40% | Mutant 35% | Scavenger-Mutant 20% | Skirmisher 3% | Scavenger-Sprinter Dominant Class ---------------- Mutant | -10/Materials Mutant | -9/Materials Scavenger-Mutant | -9/Mines Mutant | -9/Exiles Mutant | -8/Mines Skirmisher | -8/Materials Resources | -11 -10 -9 -9 -9 -8 -8 ----------- Run | Scr Mat Mat Min Exi Min Mat Matter Collected 1262 | 189 . 374 108 . . 591 Remotely . | . . . . . . . Salvage Created 2035 | . . 648 86 . . 1301 Parts 123 | . . 38 11 . . 74 Haulers Intercepted 2 | . . . . . . 2 Recyclers Shooed 1 | . . . . . . 1 Parts Field Recycled . | . . . . . . . Retrieved Matter . | . . . . . . . Parts Self-Destructed . | . . . . . . . Prevented . | . . . . . . . Kills | -11 -10 -9 -9 -9 -8 -8 ------- Run | Scr Mat Mat Min Exi Min Mat Combat Hostiles Destroyed 39 | . . 14 6 . . 19 Melee 5 | . . . 5 . . . Guns 17 | . . 14 1 . . 2 AOE 13 | . . . . . . 13 Classes Destroyed 13 | . . 7 . . . 6 Worker 7 | . . 5 . . . 2 Builder 1 | . . . . . . 1 Hauler 2 | . . . . . . 2 Recycler 2 | . . 1 . . . 1 Mechanic 1 | . . 1 . . . . Watcher 2 | . . . . . . 2 Swarmer 13 | . . 6 6 . . 1 Grunt 15 | . . 5 . . . 10 Brawler 2 | . . . . . . 2 Duelist 2 | . . 1 . . . 1 Protector 1 | . . . . . . 1 Sentry 4 | . . 2 . . . 2 Hunter 2 | . . . . . . 2 Best Kill Streak 7 | . . 7 3 . . 7 Combat Bots Only 5 | . . 5 3 . . 5 Max Kills in Single Turn 2 | . . 2 1 . . 2 Gunslinging . | . . . . . . . Exploded 2 | . . . . . . 2 Melee 1 | . . . 1 . . . Uniques/NPCs Destroyed . | . . . . . . . Combat | -11 -10 -9 -9 -9 -8 -8 -------- Run | Scr Mat Mat Min Exi Min Mat Damage Taken 4614 | . . 1136 667 . 7 2804 Core 840 | . . 154 131 . . 555 Absorbed by Shields . | . . . . . . . Core Remaining (%) 76 | 100 100 . . . 28 . Volleys Fired 132 | . . 60 4 . . 68 Largest 2 | . . 2 1 . . 2 Hottest 85 | . . 79 65 . . 85 Shots Fired 215 | . . 103 4 . . 108 Gun 141 | . . 103 4 . . 34 Cannon . | . . . . . . . Launcher 69 | . . . . . . 69 Special 5 | . . . . . . 5 Kinetic 70 | . . 45 . . . 25 Thermal 55 | . . 42 4 . . 9 Explosive . | . . . . . . . Electromagnetic 85 | . . 16 . . . 69 Robot Hit Streak 14 | . . 14 5 . . 13 Robot Miss Streak 5 | . . 3 5 . . 2 Penetration Max . | . . . . . . . Secondary Targets 1 | . . 1 . . . . Max Gunslinging Chain 1 | . . 1 . . . . Shots Hit Robots 160 | . . 75 14 . . 71 Core Hits 82 | . . 28 7 . . 47 Critical Hits 1 | . . . . . . 1 Critical Kills . | . . . . . . . Critical Parts Destroyed 1 | . . . . . . 1 Melee Attacks 17 | . . . 17 . . . Impact . | . . . . . . . Slashing 17 | . . . 17 . . . Piercing . | . . . . . . . Sneak Attacks . | . . . . . . . Combat Hostiles . | . . . . . . . Follow-up Attacks . | . . . . . . . Damage Inflicted 3861 | . . 1077 351 . . 2433 Guns 1350 | . . 1017 26 . . 307 Cannons . | . . . . . . . Explosions 2186 | . . 60 . . . 2126 Melee 325 | . . . 325 . . . Ramming . | . . . . . . . Kinetic 647 | . . 473 . . . 174 Thermal 620 | . . 443 26 . . 151 Explosive . | . . . . . . . Electromagnetic 2269 | . . 161 . . . 2108 Impact . | . . . . . . . Slashing 325 | . . . 325 . . . Piercing . | . . . . . . . Highest Corruption 1 | . . . . . . 1 Average Corruption 1 | . . . . . . 1 Corruption Purged . | . . . . . . . Effects 1 | . . . . . . 1 Message Errors 1 | . . . . . . 1 Overload Shots . | . . . . . . . Overflow Damage 65 | . . 4 26 . . 35 Projectiles . | . . . . . . . Explosions 39 | . . 4 . . . 35 Melee 26 | . . . 26 . . . Knockbacks . | . . . . . . . Impact . | . . . . . . . Kinetic . | . . . . . . . Secondary . | . . . . . . . Self-Inflicted Damage 205 | . . 26 . . . 179 Shots 12 | . . 1 . . . 11 Rammed . | . . . . . . . Targets Rammed . | . . . . . . . Kicked . | . . . . . . . Crushed . | . . . . . . . Highest Temperature 240 | . . 240 32 . . 136 Average Temperature 64 | . . 66 16 . . 67 Received Heat Transfer 1419 | . . 240 . . . 1179 Siege Activations . | . . . . . . . Robots Corrupted 4 | . . . . . . 4 Combat Hostiles 4 | . . . . . . 4 Parts Fried 10 | . . . . . . 10 Impact Corruptions . | . . . . . . . Robots Melted . | . . . . . . . Combat Hostiles . | . . . . . . . Parts Melted 4 | . . 3 . . . 1 Heat Transferred 1346 | . . 970 30 . . 346 Parts Sabotaged . | . . . . . . . Parts Stolen . | . . . . . . . Parts Stripped . | . . . . . . . Power Chain Reactions 7 | . . 1 . . . 6 Missiles Intercepted . | . . . . . . . Alert | -11 -10 -9 -9 -9 -8 -8 ------- Run | Scr Mat Mat Min Exi Min Mat Peak Influence 630 | . 43 407 192 . . 630 Initial 82 | . . 17 82 . . . Average 131 | . 11 187 69 . . 179 Maximum Alert Level 2 | . . 2 . . . 2 Low Security (%) 80 | 100 100 48 100 . 100 74 Level 1 11 | . . 45 . . . 9 Level 2 8 | . . 5 . . . 15 Level 3 . | . . . . . . . Level 4 . | . . . . . . . Level 5 . | . . . . . . . High Security . | . . . . . . . Max Security . | . . . . . . . Squads Dispatched 15 | . . 2 . . . 13 Investigation 6 | . . 1 . . . 5 Extermination . | . . . . . . . Reinforcement 6 | . . 1 . . . 5 Assault 2 | . . . . . . 2 Garrison 1 | . . . . . . 1 Intercept . | . . . . . . . Construction Impeded 2 | . . . . . . 2 Haulers Reinforced . | . . . . . . . Stealth | -11 -10 -9 -9 -9 -8 -8 --------- Run | Scr Mat Mat Min Exi Min Mat Distress Signals 9 | . . 4 . . . 5 Communications Jammed . | . . . . . . . Distress Signals . | . . . . . . . Times Spotted 116 | . 2 30 11 . 2 71 Peak Tracking Total 13 | . 2 10 4 . 4 13 Tactical Retreats 17 | . . . 2 . . 15 Traps | -11 -10 -9 -9 -9 -8 -8 ------- Run | Scr Mat Mat Min Exi Min Mat Traps Triggered 4 | . . . . . . 4 Indirectly 3 | . . . . . . 3 Trap Hack Attempts . | . . . . . . . Triggered . | . . . . . . . Disarmed . | . . . . . . . Reprogrammed 4 | . . 4 . . . . Reused . | . . . . . . . Traps Extracted . | . . . . . . . Installed . | . . . . . . . Triggered 2 | . . . . . . 2 Machines | -11 -10 -9 -9 -9 -8 -8 ---------- Run | Scr Mat Mat Min Exi Min Mat Machines Disabled 6 | . . 2 . . . 4 Max in Single Turn 1 | . . 1 . . . 1 Machines Sabotaged . | . . . . . . . Garrisons Compromised . | . . . . . . . Overloaded Fab Kills . | . . . . . . . Fab Network Shutdowns . | . . . . . . . Hacking | -11 -10 -9 -9 -9 -8 -8 --------- Run | Scr Mat Mat Min Exi Min Mat Machines Accessed 8 | . 5 1 . 1 . 1 Terminals 4 | . 3 1 . . . . Fabricators . | . . . . . . . Repair Stations 1 | . . . . . . 1 Recycling Units 2 | . 2 . . . . . Scanalyzers . | . . . . . . . Garrison Access . | . . . . . . . Total Hacks 20 | . 13 4 . 1 . 2 Successful 12 | . 8 2 . 1 . 1 Failed 8 | . 5 2 . . . 1 Catastrophic 2 | . 1 1 . . . . Database Lockouts . | . . . . . . . Manual 1 | . . . . 1 . . Terminals 11 | . 7 4 . . . . Fabricators . | . . . . . . . Repair Stations 2 | . . . . . . 2 Recycling Units 6 | . 6 . . . . . Scanalyzers . | . . . . . . . Garrison Access . | . . . . . . . Terminal Hacks 5 | . 2 2 . 1 . . Locate Traps 1 | . . 1 . . . . Reprogram Traps 1 | . . 1 . . . . Transport Status 1 | . 1 . . . . . Hauler Manifests 1 | . 1 . . . . . EX-Prototype ID Bank 1 | . . . . 1 . . Fabricator Hacks . | . . . . . . . Repair Station Hacks 1 | . . . . . . 1 Refit 1 | . . . . . . 1 Recycling Unit Hacks 6 | . 6 . . . . . Process 1 | . 1 . . . . . Report Inventory 2 | . 2 . . . . . Retrieve Matter 3 | . 3 . . . . . Scanalyzer . | . . . . . . . Garrison Access Hacks . | . . . . . . . Unauthorized Hacks . | . . . . . . . Terminals . | . . . . . . . Fabricators . | . . . . . . . Repair Stations . | . . . . . . . Recycling Units . | . . . . . . . Scanalyzers . | . . . . . . . Garrison Access . | . . . . . . . Data Cores Recovered . | . . . . . . . Used . | . . . . . . . Hacking Detections 6 | . 5 1 . . . . Full Trace Events 1 | . . 1 . . . . Feedback Events . | . . . . . . . Feedback Blocked . | . . . . . . . Robot Schematics Acquired . | . . . . . . . Robots Built . | . . . . . . . Matter . | . . . . . . . Time . | . . . . . . . Total Robot Build Rating . | . . . . . . . Part Schematics Acquired . | . . . . . . . Parts Built . | . . . . . . . Matter . | . . . . . . . Time . | . . . . . . . Total Part Build Rating . | . . . . . . . Parts Repaired . | . . . . . . . Time . | . . . . . . . Parts Recycled . | . . . . . . . Recycled Matter 7 | . 7 . . . . . Retrieved Matter 7 | . 7 . . . . . Retrieved Components . | . . . . . . . Parts Scanalyzed . | . . . . . . . Part Schematics Acquired . | . . . . . . . Parts Damaged . | . . . . . . . Bothacking | -11 -10 -9 -9 -9 -8 -8 ------------ Run | Scr Mat Mat Min Exi Min Mat Used RIF Installer . | . . . . . . . Robots Hacked . | . . . . . . . Non-combat . | . . . . . . . Combat . | . . . . . . . Robot Hacks Applied . | . . . . . . . Relay Couplers Released . | . . . . . . . Robots Rewired . | . . . . . . . Allies Hacked . | . . . . . . . Hacks Repelled . | . . . . . . . Allies | -11 -10 -9 -9 -9 -8 -8 -------- Run | Scr Mat Mat Min Exi Min Mat Total Allies 5 | . . . . . . 5 Largest Group 1 | . . . . . . 1 Highest-Rated Group 16 | . . . . . . 16 Highest-Rated Ally 16 | . . . . . . 16 Total Orders . | . . . . . . . Ally Attacks 23 | . . . . . . 23 Total Damage 288 | . . . . . . 288 Kills 5 | . . . . . . 5 Allies Corrupted . | . . . . . . . Allies Melted . | . . . . . . . Field Lobotomies 5 | . . . . . . 5 Intel | -11 -10 -9 -9 -9 -8 -8 ------- Run | Scr Mat Mat Min Exi Min Mat Robot Analysis Total . | . . . . . . . Derelict Logs Recovered . | . . . . . . . Drone Launches . | . . . . . . . Drone Recoveries . | . . . . . . . Exploration | -11 -10 -9 -9 -9 -8 -8 ------------- Run | Scr Mat Mat Min Exi Min Mat Turns Passed 2924 | 91 233 434 741 94 6 1325 Spaces Moved 1616 | 69 161 159 363 244 17 603 Core 7 | 7 . . . . . . Treads 487 | . . 20 167 . . 300 Legs 622 | 62 161 139 146 . . 114 Wheels . | . . . . . . . Hover . | . . . . . . . Flight 500 | . . . 50 244 17 189 Fastest Speed 31 | 50 120 120 31 37 37 37 Average Speed 114 | 112 140 146 132 37 37 122 Slowest Speed 400 | 120 150 180 400 37 37 190 Overloaded Moves . | . . . . . . . Propulsion Burnouts . | . . . . . . . Robots Hopped . | . . . . . . . Cave-ins Triggered . | . . . . . . . Exploration Rate (%) 27 | 5 30 17 53 42 9 34 Regions Visited 6 Branch Regions 3 Pre-discovered Areas . | . . . . . . . Known Exits Taken . | . . . . . . . Unknown Exits Taken 6 | 1 1 1 1 1 1 . Scrap Searched 1 | . . . 1 . . . Spaces Dug . | . . . . . . . Terrain Destroyed 67 | . . 2 . . . 65 Melee . | . . . . . . . Projectile . | . . . . . . . AOE 67 | . . 2 . . . 65 Terrain Rammed . | . . . . . . . Walls Destroyed . | . . . . . . . Machines Disabled . | . . . . . . . Actions | -11 -10 -9 -9 -9 -8 -8 --------- Run | Scr Mat Mat Min Exi Min Mat Total 2446 | 82 168 254 595 248 16 1083 Wait 543 | . 1 3 186 . . 353 Move 1610 | 68 160 158 362 243 16 603 Hop . | . . . . . . . Pick Up 37 | 8 5 10 7 1 . 6 Fast Attach 26 | . . 7 2 1 . 16 Attach 34 | 6 1 5 9 . . 13 Detach 8 | . . 1 . . . 7 Swap 11 | . 1 5 1 . . 4 Drop 28 | . . 5 7 3 . 13 Fire 132 | . . 60 4 . . 68 Melee 17 | . . . 17 . . . Ram . | . . . . . . . Kick . | . . . . . . . Crush . | . . . . . . . Escape Stasis . | . . . . . . . Rewire . | . . . . . . . Trap . | . . . . . . . Miscellaneous . | . . . . . . . Route ------- -11/Scrapyard -10/Materials -9/Materials -9/Mines -9/Exiles -8/Mines -8/Materials (discovered 1 exit: [*Fac]) History --------- Turn | Location | Event 5 | -11/Scrapyard | Discovered new exit (range 16) 92 | -11/Scrapyard | Entered Materials 309 | -10/Materials | Discovered new exit (range 11) 314 | -10/Materials | Build established: Mutant 325 | -10/Materials | Entered another Materials area 325 | -9/Materials | Evolved 2 slots: Propulsion x2 597 | -9/Materials | Discovered new exit (range 16) 724 | -9/Materials | Lost 7 parts (1p3n1u2w) 759 | -9/Materials | Entered Mines 1005 | -9/Mines | Build established: Scavenger-Mutant 1055 | -9/Mines | Core integrity fell below 50% 1082 | -9/Mines | Lost 5 parts (1p3n1w) 1498 | -9/Mines | Deemed a non-threat by the Exiles lab entrance 1498 | -9/Mines | Discovered new exit (range 5) 1500 | -9/Mines | Entered Exiles 1509 | -9/Exiles | Discovered new exit (range 14) 1519 | -9/Exiles | Met 8R-AWN 1525 | -9/Exiles | Met EX-HEX 1534 | -9/Exiles | Met EX-BIN 1539 | -9/Exiles | Aligned with FarCom system 1539 | -9/Exiles | Given EX-Vault access code 1547 | -9/Exiles | Opened EX-Vault 1550 | -9/Exiles | Found Prototype Device 1550 | -9/Exiles | Identified Trap Reconfigurator 1555 | -9/Exiles | Found Field Lobotomy Kit 1564 | -9/Exiles | Warned to stay clear of 0b10 Research branches 1567 | -9/Exiles | Exiles lab attacked by MAIN.C 1594 | -9/Exiles | Left Exiles lab with Field Lobotomy Kit 1594 | -9/Exiles | Entered Mines 1596 | -8/Mines | Discovered new exit (range 10) 1600 | -8/Mines | Entered Materials 1600 | -8/Materials | Evolved 2 slots: Power x1, Utility x1 1711 | -8/Materials | Assimilated G-47 Trooper with FLK Orb 1766 | -8/Materials | Assimilated Y-45 Defender with FLK Orb 1840 | -8/Materials | Assimilated G-47 Trooper with FLK Orb 1844 | -8/Materials | Build established: Mutant 1850 | -8/Materials | Assimilated G-47 Trooper with FLK Orb 2015 | -8/Materials | Assimilated G-47 Trooper with FLK Orb 2145 | -8/Materials | Lost 5 parts (2p1n2w) 2607 | -8/Materials | Build established: Skirmisher 2800 | -8/Materials | First assault squad dispatched 2830 | -8/Materials | Garrison activated, responded to threat 2886 | -8/Materials | Discovered new exit (range 15) 2908 | -8/Materials | Core integrity fell below 50% 2923 | -8/Materials | Core integrity fell below 20% 2925 | -8/Materials | Destroyed by G-47 Trooper with Particle Gun Last Messages --------------- C-30 ARC bursts open, deploying its payload. G-50 Soldier unfolds itself. G-47 Trooper unfolds itself. L-31 Rogue unfolds itself. Arm. Treads destroyed. Shock Bomb Launcher destroyed. Imp. Heat Sink destroyed. G-47 Trooper IFF system glitched. Arm. Treads destroyed. Acquired Carbon-fiber Leg. Shock Bomb Launcher destroyed. Arm. Treads destroyed. Acquired Carbon-fiber Leg. Lgt. Nuclear Core destroyed. S-10 Pest misfires. Deuterium Engine destroyed. G-47 Trooper IFF system glitched. Carbon-fiber Leg destroyed. G-47 Trooper IFF system glitched. Carbon-fiber Leg destroyed. Map ----- +----------------------------------------------------+ | ???? =[?## " #?# #??????????? | | ##?##%##?## # """###?# #??????????? | | ?" #"!"#??# #######???# #??????????? | | ?" #" "#### #?????????# """ #??????????? | | ?? " [%=#?????????# """ #??????????? | | ??? "##### ####??????# "T" """ #??????????? | | ???# #??#[ #??????# #??????????? | | ####=#### #??????###########??????????? | | %= * =!/ #???????????????????????????? | | ######### = #???????????????????????????? | | ????????# #???????????????????????????? | | ????????# ! #???????????????????????????? | | ????????########???????????????????????????? | | ???????????????????????????????????????????? | | ?########??????????????????????????????????? | | ?#!!!!!!#??????????????????????????????????? | | ##!!!!!!#??????????????????????????????????? | | #==! ####???????????????????????????????? | | ##=% ## ############################????? | | !%%%= =% % = ????? | | #### ###"" # % ?????? | | ?# = "" # g = = ?????? | | ?# """" # ggs%! s ???????? | | ?# """"" # [ g #???????????? | | ?# """"" m %[ g < #???????????? | | ?# """ # l@g #???????????? | | ?# g # g g g #???????????? | | ?# ###/#################???????????? | | ?# ! #???????????????????????????????? | | ?###########???????????????????????????????? | | ???????????????????????????????????????????? | | ???????????????????????????????????????????? | | ???????????????????????????????????????????? | | ???????????????????????????????????????????? | | ???????????????????????????????????????????? | | ???????????????????????????????????????????? | | ???????????????????????????????????????????? | | ???????????????????????????????????????????? | | | | | | | | | | | | | | | | | | | | | | | | | +----------------------------------------------------+ Best States ------------- Heat Dissipation 45 Energy Generation 23 Energy Capacity 335 Matter Stores 300 Matter Capacity 300 Sight Range 16 Robot Scan Range 16 Terrain Scan Density 10 ECM Strength 1 Armor Coverage 150 Core Shielding 20 Evasion (%) 63 Targeting Accuracy 8 Recoil Reduction 4 Item Schematics ----------------- None Robot Schematics ------------------ None Fabricated ------------ Nothing Alien Tech Used ----------------- None Achievements -------------- None Challenges ------------ None Game ------ Seed GhostAntimatterInitializer Manual? 0 Play Time 00:35:33 Cumulative 13.6 hours Start 2021.10.20 @ 13:00:33 End 2021.10.20 @ 21:48:28 Sessions 3 Manual Loads 0 Difficulty Rogue Special Mode None Game No. 14 Rogue 3 Adventurer 11 Explorer 0 Win Type - Total 0 Types 0/0/0/0/0/0/0/0/0 Lore% 20 Gallery% 24 Achievement% 18 Wizard Run 0 Options --------- ASCII 0 Keyboard 0 Movement Mouse Keybinds 0 Fullscreen 1 Font 18/TerminusBold Map View 76x50 Tactical HUD 0 Map Filters NONE Filters NONE Steam 1 RUN: 83eea3ad-51e6-4105-8a96-7eaa379d5c6f